fUSD/lending_fUSD_20260530
["ID","MTS","AMOUNT","RATE_DAILY","PERIOD"]
[423405261,1780084922000,-500.0,0.00041315,120]
[423405260,1780084922000,-500.0,0.00041315,120]
[423405262,1780084922000,-500.0,0.00041315,120]
[423405263,1780084922000,-590.28,0.00041315,120]
[423405265,1780084922000,-500.0,0.00041315,120]
[423405267,1780084922000,-500.0,0.00041315,120]
[423405266,1780084922000,-500.0,0.00041315,120]
[423405268,1780084922000,-500.0,0.00041315,120]
[423405269,1780084922000,-500.0,0.00041315,120]
[423405270,1780084922000,-500.0,0.00041315,120]
[423405271,1780084922000,-500.0,0.00041315,120]
[423405264,1780084922000,-500.0,0.00041315,120]
[423405277,1780084923000,-500.0,0.00041315,120]
[423405272,1780084923000,-500.0,0.00041315,120]
[423405273,1780084923000,-500.0,0.00041315,120]
[423405276,1780084923000,-500.0,0.00041315,120]
[423405275,1780084923000,-500.0,0.00041315,120]
[423405278,1780084923000,-500.0,0.00041315,120]
[423405274,1780084923000,-500.0,0.00041315,120]
[423405280,1780084923000,-512.21,0.00041315,120]
[423405282,1780084923000,-500.0,0.00041315,120]
[423405281,1780084923000,-500.0,0.00041315,120]
[423405283,1780084923000,-1013.99,0.00041315,120]
[423405285,1780084923000,-500.0,0.00041315,120]
[423405284,1780084923000,-500.0,0.00041315,120]
[423405286,1780084923000,-500.0,0.00041315,120]
[423405279,1780084923000,-500.0,0.00041315,120]
[423405288,1780084924000,-500.0,0.00041315,120]
[423405287,1780084924000,-323.61858689,0.00041315,120]
[423405289,1780084924000,-5959.28,0.00041315,120]
[423405290,1780084924000,-500.0,0.00041315,120]
[423405291,1780084924000,-605.53431083,0.00041315,120]
[423405292,1780084924000,-500.0,0.00041315,120]
[423405293,1780084924000,-500.0,0.00041315,120]
[423405294,1780084924000,-500.0,0.00041315,120]
[423405295,1780084924000,-500.0,0.00041315,120]
[423405296,1780084924000,-500.0,0.00041315,120]
[423405297,1780084924000,-500.0,0.00041315,120]
[423405299,1780084925000,-500.0,0.00041315,120]
[423405298,1780084925000,-372.44883022,0.00041315,120]
[423405300,1780084925000,-500.0,0.00041315,120]
[423405301,1780084925000,-500.0,0.00041315,120]
[423405302,1780084925000,-500.0,0.00041315,120]
[423405303,1780084925000,-500.0,0.00041315,120]
[423405309,1780084925000,-500.0,0.00041315,120]
[423405306,1780084925000,-500.0,0.00041315,120]
[423405305,1780084925000,-500.0,0.00041315,120]
[423405307,1780084925000,-500.0,0.00041315,120]
[423405308,1780084925000,-1893.11,0.00041315,120]
[423405310,1780084925000,-500.0,0.00041315,120]
[423405311,1780084925000,-500.0,0.00041315,120]
[423405304,1780084925000,-1273.89,0.00041315,120]
[423405312,1780084926000,-570.44516638,0.00041315,120]
[423405314,1780084926000,-1000.0,0.00041315,30]
[423405313,1780084926000,-500.0,0.00041315,120]
[423405315,1780084926000,-1000.0,0.00041315,30]
[423405316,1780084926000,-500.0,0.00041315,120]
[423405318,1780084926000,-500.0,0.00041315,120]
[423405319,1780084926000,-1183.79,0.00041315,120]
[423405320,1780084926000,-1002.77,0.00041315,120]
[423405321,1780084926000,-1000.0,0.00041315,120]
[423405322,1780084926000,-500.0,0.00041315,120]
[423405323,1780084926000,-150.0,0.0004133,120]
[423405324,1780084926000,-259.14,0.00041333,55]
[423405325,1780084926000,-155.26339398,0.00041344,115]
[423405317,1780084926000,-1000.0,0.00041315,120]
[423405326,1780084927000,-155.26339398,0.00041344,115]
[423405328,1780084927000,-280.449145,0.000414,56]
[423405327,1780084927000,-475.17,0.00041358,120]
[423405329,1780084927000,-462.0,0.00041401,120]
[423405330,1780084927000,-204.0,0.00041401,120]
[423405331,1780084927000,-285.0,0.00041401,120]
[423405332,1780084927000,-1581.0,0.00041401,120]
[423405333,1780084927000,-1192.0,0.00041401,120]
[423405335,1780084927000,-177.0,0.00041401,120]
[423405334,1780084927000,-486.0,0.00041401,120]
[423405336,1780084927000,-2078.0,0.00041401,120]
[423405338,1780084927000,-2000.0,0.00041401,120]
[423405337,1780084927000,-482.0,0.00041401,120]
[423405339,1780084927000,-495.0,0.00041402,120]
[423405340,1780084928000,-2881.0,0.00041402,120]
[423405341,1780084928000,-1123.0,0.00041402,120]
[423405343,1780084928000,-500.0,0.00041424,120]
[423405345,1780084928000,-500.0,0.00041424,120]
[423405344,1780084928000,-500.0,0.00041424,120]
[423405346,1780084928000,-500.0,0.00041424,120]
[423405342,1780084928000,-500.0,0.00041424,120]
[423405348,1780084928000,-500.0,0.00041424,120]
[423405349,1780084928000,-429.26543568,0.00041424,120]
[423405350,1780084928000,-1015.95,0.00041424,120]
[423405351,1780084928000,-500.0,0.00041424,120]
[423405352,1780084928000,-500.0,0.00041424,120]
[423405354,1780084928000,-611.5,0.00041424,120]
[423405353,1780084928000,-1042.81,0.00041424,120]
[423405347,1780084928000,-504.38,0.00041424,120]
[423405355,1780084929000,-635.66,0.00041424,120]
[423405357,1780084929000,-836.03,0.00041424,120]
[423405358,1780084929000,-806.76,0.00041424,120]
[423405360,1780084929000,-500.0,0.00041424,120]
[423405359,1780084929000,-500.0,0.00041424,120]
[423405361,1780084929000,-500.0,0.00041424,120]
[423405356,1780084929000,-500.0,0.00041424,120]
[423405362,1780084929000,-368.78170241,0.00041424,120]
[423405364,1780084929000,-1171.69,0.00041424,120]
[423405366,1780084929000,-500.0,0.00041424,120]
[423405365,1780084929000,-500.0,0.00041424,120]
[423405367,1780084929000,-608.12,0.00041424,120]
[423405368,1780084929000,-1221.98,0.00041424,120]
[423405363,1780084929000,-500.0,0.00041424,120]
[423405369,1780084930000,-500.0,0.00041424,120]
[423405370,1780084930000,-1101.3,0.00041424,120]
[423405371,1780084930000,-500.0,0.00041424,120]
[423405372,1780084930000,-1588.59,0.00041424,120]
[423405373,1780084930000,-500.0,0.00041424,120]
[423405374,1780084930000,-500.0,0.00041424,120]
[423405375,1780084930000,-525.35,0.00041424,120]
[423405378,1780084930000,-860.62,0.00041424,120]
[423405377,1780084930000,-667.1,0.00041424,120]
[423405379,1780084930000,-500.0,0.00041424,120]
[423405380,1780084930000,-950.29,0.00041424,120]
[423405382,1780084930000,-1248.29,0.00041424,120]
[423405381,1780084930000,-500.0,0.00041424,120]
[423405383,1780084930000,-500.0,0.00041424,120]
[423405376,1780084930000,-500.0,0.00041424,120]
[423405388,1780084931000,-1124.22,0.00041424,120]
[423405389,1780084931000,-500.0,0.00041424,120]
[423405385,1780084931000,-500.0,0.00041424,120]
[423405384,1780084931000,-500.0,0.00041424,120]
[423405386,1780084931000,-500.0,0.00041424,120]
[423405391,1780084931000,-500.0,0.00041424,120]
[423405387,1780084931000,-500.0,0.00041424,120]
[423405392,1780084931000,-500.0,0.00041424,120]
[423405398,1780084931000,-500.0,0.00041424,120]
[423405396,1780084931000,-915.18,0.00041424,120]
[423405397,1780084931000,-500.0,0.00041424,120]
[423405390,1780084931000,-500.0,0.00041424,120]
[423405394,1780084931000,-158.07066851,0.00041424,120]
[423405393,1780084931000,-500.0,0.00041424,120]
[423405395,1780084931000,-500.0,0.00041424,120]
[423405399,1780084932000,-500.0,0.00041424,120]
[423405400,1780084932000,-500.0,0.00041424,120]
[423405401,1780084932000,-1834.02,0.00041424,120]
[423405403,1780084932000,-500.0,0.00041424,120]
[423405404,1780084932000,-755.09,0.00041424,120]
[423405405,1780084932000,-500.0,0.00041424,120]
[423405402,1780084932000,-500.0,0.00041424,120]
[423405407,1780084932000,-393.11545521,0.00041424,120]
[423405408,1780084932000,-1397.84,0.00041424,120]
[423405409,1780084932000,-500.0,0.00041424,120]
[423405410,1780084932000,-1399.7,0.00041424,120]
[423405411,1780084932000,-500.0,0.00041424,120]
[423405412,1780084932000,-500.0,0.00041424,120]
[423405406,1780084932000,-500.0,0.00041424,120]
[423405418,1780084933000,-500.0,0.00041424,120]
[423405413,1780084933000,-500.0,0.00041424,30]
[423405414,1780084933000,-500.0,0.00041424,120]
[423405415,1780084933000,-2907.55,0.00041424,120]
[423405416,1780084933000,-1178.65,0.00041424,120]
[423405417,1780084933000,-500.0,0.00041424,120]
[423405419,1780084933000,-500.0,0.00041424,120]
[423405425,1780084933000,-500.0,0.00041424,120]
[423405421,1780084933000,-500.0,0.00041424,120]
[423405422,1780084933000,-719.37,0.00041424,30]
[423405423,1780084933000,-1446.34,0.00041424,120]
[423405424,1780084933000,-500.0,0.00041424,120]
[423405426,1780084933000,-1182.3,0.00041424,120]
[423405427,1780084933000,-704.87,0.00041424,120]
[423405420,1780084933000,-500.0,0.00041424,120]
[423405433,1780084934000,-500.0,0.00041424,120]
[423405428,1780084934000,-500.0,0.00041424,120]
[423405429,1780084934000,-1814.2,0.00041424,120]
[423405430,1780084934000,-249.45911171,0.00041424,120]
[423405431,1780084934000,-500.0,0.00041424,120]
[423405432,1780084934000,-500.0,0.00041424,120]
[423405434,1780084934000,-1540.81,0.00041424,120]
[423405440,1780084934000,-1873.4,0.00041424,120]
[423405436,1780084934000,-500.0,0.00041424,120]
[423405437,1780084934000,-2242.5,0.00041424,120]
[423405439,1780084934000,-901.75,0.00041424,120]
[423405438,1780084934000,-1561.96,0.00041424,120]
[423405441,1780084934000,-500.0,0.00041424,120]
[423405442,1780084934000,-500.0,0.00041424,120]
[423405435,1780084934000,-500.0,0.00041424,120]
[423405443,1780084935000,-500.0,0.00041424,120]
[423405444,1780084935000,-506.14444682,0.00041424,120]
[423405445,1780084935000,-500.0,0.00041424,120]
[423405446,1780084935000,-500.0,0.00041424,90]
[423405447,1780084935000,-980.49,0.00041424,120]
[423405448,1780084935000,-210.56286932,0.00041424,120]
[423405450,1780084935000,-772.14,0.00041424,120]
[423405452,1780084935000,-3392.34,0.00041424,120]
[423405451,1780084935000,-500.0,0.00041424,120]
[423405453,1780084935000,-820.01,0.00041424,120]
[423405455,1780084935000,-500.0,0.00041424,120]
[423405454,1780084935000,-500.0,0.00041424,120]
[423405449,1780084935000,-500.0,0.00041424,60]
[423405456,1780084936000,-500.0,0.00041424,120]
[423405457,1780084936000,-500.0,0.00041424,120]
[423405458,1780084936000,-500.0,0.00041424,120]
[423405459,1780084936000,-500.0,0.00041424,120]
[423405461,1780084936000,-917.29,0.00041424,120]
[423405460,1780084936000,-587.91,0.00041424,120]
[423405463,1780084936000,-500.0,0.00041424,120]
[423405462,1780084936000,-655.38,0.00041424,120]
[423405466,1780084936000,-1095.92,0.00041424,120]
[423405471,1780084936000,-500.0,0.00041424,120]
[423405470,1780084936000,-500.0,0.00041424,120]
[423405468,1780084936000,-500.0,0.00041424,120]
[423405464,1780084936000,-561.16,0.00041424,120]
[423405467,1780084936000,-500.0,0.00041424,120]
[423405465,1780084936000,-845.37,0.00041424,120]
[423405469,1780084936000,-647.13,0.00041424,120]
[423405472,1780084937000,-500.0,0.00041424,120]
[423405473,1780084937000,-500.0,0.00041424,120]
[423405475,1780084937000,-1426.45,0.00041424,120]
[423405474,1780084937000,-1076.54,0.00041424,120]
[423405476,1780084937000,-365.24862075,0.00041424,120]
[423405478,1780084937000,-1530.88,0.00041424,120]
[423405477,1780084937000,-1395.21,0.00041424,120]
[423405479,1780084937000,-500.0,0.00041424,120]
[423405481,1780084937000,-500.0,0.00041424,120]
[423405483,1780084937000,-1576.36,0.00041424,120]
[423405482,1780084937000,-2512.03,0.00041424,120]
[423405484,1780084937000,-1034.39,0.00041424,120]
[423405485,1780084937000,-500.0,0.00041424,120]
[423405486,1780084937000,-500.0,0.00041424,120]
[423405480,1780084937000,-1177.89,0.00041424,120]
[423405491,1780084938000,-500.0,0.00041424,120]
[423405487,1780084938000,-500.0,0.00041424,120]
[423405489,1780084938000,-621.01,0.00041424,120]
[423405490,1780084938000,-500.0,0.00041424,120]
[423405492,1780084938000,-500.0,0.00041424,120]
[423405493,1780084938000,-509.64,0.00041424,120]
[423405488,1780084938000,-500.0,0.00041424,120]
[423405494,1780084938000,-500.0,0.00041424,120]
[423405496,1780084938000,-754.91,0.00041424,120]
[423405498,1780084938000,-500.0,0.00041424,120]
[423405497,1780084938000,-500.0,0.00041424,120]
[423405499,1780084938000,-1276.13,0.00041424,120]
[423405500,1780084938000,-1497.67,0.00041424,120]
[423405501,1780084938000,-500.0,0.00041424,120]
[423405495,1780084938000,-500.0,0.00041424,120]
[423405502,1780084939000,-1107.45,0.00041424,120]
[423405504,1780084939000,-514.01,0.00041424,120]
[423405505,1780084939000,-500.0,0.00041424,120]
[423405507,1780084939000,-500.0,0.00041424,120]
[423405506,1780084939000,-500.0,0.00041424,120]
[423405508,1780084939000,-175.64654485,0.00041424,120]
[423405503,1780084939000,-915.69,0.00041424,120]
[423405510,1780084939000,-500.0,0.00041424,120]
[423405509,1780084939000,-500.0,0.00041424,120]
[423405515,1780084939000,-2254.44,0.00041424,120]
[423405514,1780084939000,-500.0,0.00041424,120]
[423405516,1780084939000,-500.0,0.00041424,120]
[423405513,1780084939000,-500.0,0.00041424,120]
[423405512,1780084939000,-571.39,0.00041424,120]
[423405511,1780084939000,-500.0,0.00041424,120]
[423405517,1780084940000,-500.0,0.00041424,120]
[423405518,1780084940000,-500.0,0.00041424,120]
[423405519,1780084940000,-2175.95,0.00041424,120]
[423405521,1780084940000,-647.11,0.00041424,120]
[423405520,1780084940000,-500.0,0.00041424,120]
[423405524,1780084940000,-2575.44,0.00041424,120]
[423405526,1780084940000,-1222.88,0.00041424,120]
[423405525,1780084940000,-500.0,0.00041424,120]
[423405527,1780084940000,-500.0,0.00041424,120]
[423405522,1780084940000,-1378.28,0.00041424,120]
[423405523,1780084940000,-500.0,0.00041424,120]
[423405534,1780084941000,-500.0,0.00041424,120]
[423405528,1780084941000,-500.0,0.00041424,120]
[423405529,1780084941000,-500.0,0.00041424,120]
[423405530,1780084941000,-500.0,0.00041424,120]
[423405531,1780084941000,-500.0,0.00041424,120]
[423405532,1780084941000,-1213.07,0.00041424,120]
[423405535,1780084941000,-1467.68,0.00041424,120]
[423405536,1780084941000,-500.0,0.00041424,120]
[423405537,1780084941000,-500.0,0.00041424,120]
[423405538,1780084941000,-500.0,0.00041424,120]
[423405539,1780084941000,-1038.9,0.00041424,120]
[423405540,1780084941000,-505.79,0.00041424,120]
[423405541,1780084941000,-500.0,0.00041424,120]
[423405533,1780084941000,-1619.99,0.00041424,120]
[423405542,1780084942000,-500.0,0.00041424,120]
[423405543,1780084942000,-500.0,0.00041424,120]
[423405544,1780084942000,-500.0,0.00041424,120]
[423405546,1780084942000,-500.0,0.00041424,120]
[423405545,1780084942000,-988.32,0.00041424,120]
[423405547,1780084942000,-369.20700384,0.00041424,120]
[423405549,1780084942000,-500.0,0.00041424,120]
[423405550,1780084942000,-2930.35,0.00041424,120]
[423405551,1780084942000,-500.0,0.00041424,120]
[423405552,1780084942000,-564.8,0.00041424,120]
[423405553,1780084942000,-500.0,0.00041424,120]
[423405554,1780084942000,-2752.11,0.00041424,120]
[423405548,1780084942000,-500.0,0.00041424,120]
[423405560,1780084943000,-547.32425384,0.00041424,120]
[423405555,1780084943000,-500.0,0.00041424,120]
[423405556,1780084943000,-528.32,0.00041424,120]
[423405557,1780084943000,-500.0,0.00041424,120]
[423405558,1780084943000,-1534.3,0.00041424,120]
[423405559,1780084943000,-500.0,0.00041424,120]
[423405561,1780084943000,-2094.38,0.00041424,120]
[423405569,1780084943000,-500.0,0.00041424,120]
[423405563,1780084943000,-523.89,0.00041424,120]
[423405564,1780084943000,-500.0,0.00041424,120]
[423405565,1780084943000,-757.58,0.00041424,120]
[423405566,1780084943000,-652.06,0.00041424,120]
[423405567,1780084943000,-500.0,0.00041424,120]
[423405568,1780084943000,-1376.62,0.00041424,120]
[423405562,1780084943000,-810.86,0.00041424,120]
[423405574,1780084944000,-500.0,0.00041424,120]
[423405570,1780084944000,-500.0,0.00041424,120]
[423405572,1780084944000,-1215.81,0.00041424,120]
[423405571,1780084944000,-1629.33,0.00041424,120]
[423405573,1780084944000,-729.54,0.00041424,120]
[423405575,1780084944000,-500.0,0.00041424,120]
[423405576,1780084944000,-500.0,0.00041424,120]
[423405583,1780084944000,-500.0,0.00041424,120]
[423405578,1780084944000,-500.0,0.00041424,120]
[423405580,1780084944000,-500.0,0.00041424,120]
[423405579,1780084944000,-500.0,0.00041424,120]
[423405581,1780084944000,-500.0,0.00041424,120]
[423405584,1780084944000,-500.0,0.00041424,60]
[423405582,1780084944000,-1443.76,0.00041424,120]
[423405577,1780084944000,-2041.14,0.00041424,120]
[423405585,1780084945000,-1855.56,0.00041424,120]
[423405586,1780084945000,-500.0,0.00041424,120]
[423405587,1780084945000,-661.05,0.00041424,120]
[423405588,1780084945000,-500.0,0.00041424,120]
[423405589,1780084945000,-500.0,0.00041424,120]
[423405591,1780084945000,-500.0,0.00041424,120]
[423405590,1780084945000,-1067.1,0.00041424,120]
[423405592,1780084945000,-500.0,0.00041424,120]
[423405594,1780084945000,-500.0,0.00041424,120]
[423405595,1780084945000,-500.0,0.00041424,120]
[423405596,1780084945000,-500.0,0.00041424,120]
[423405597,1780084945000,-500.0,0.00041424,120]
[423405598,1780084945000,-616.36,0.00041424,120]
[423405599,1780084945000,-500.0,0.00041424,120]
[423405601,1780084945000,-1922.59,0.00041424,120]
[423405600,1780084945000,-567.37,0.00041424,120]
[423405593,1780084945000,-500.0,0.00041424,120]
[423405602,1780084946000,-500.0,0.00041424,120]
[423405603,1780084946000,-1514.0,0.00041424,120]
[423405604,1780084946000,-854.37,0.00041424,120]
[423405605,1780084946000,-500.0,0.00041424,120]
[423405607,1780084946000,-500.0,0.00041424,120]
[423405606,1780084946000,-500.0,0.00041424,120]
[423405608,1780084946000,-500.0,0.00041424,120]
[423405614,1780084946000,-500.0,0.00041424,120]
[423405610,1780084946000,-500.0,0.00041424,120]
[423405611,1780084946000,-509.44,0.00041424,120]
[423405612,1780084946000,-500.0,0.00041424,120]
[423405613,1780084946000,-500.0,0.00041424,120]
[423405615,1780084946000,-500.0,0.00041424,120]
[423405616,1780084946000,-500.0,0.00041424,120]
[423405617,1780084946000,-534.28,0.00041424,120]
[423405609,1780084946000,-500.0,0.00041424,120]
[423405618,1780084947000,-1096.64,0.00041424,120]
[423405619,1780084947000,-167.23499137,0.00041424,120]
[423405620,1780084947000,-500.0,0.00041424,120]
[423405621,1780084947000,-500.0,0.00041424,120]
[423405622,1780084947000,-500.0,0.00041424,120]
[423405623,1780084947000,-500.0,0.00041424,120]
[423405625,1780084947000,-1208.52,0.00041424,120]
[423405626,1780084947000,-500.0,0.00041424,120]
[423405627,1780084947000,-745.76,0.00041424,120]
[423405628,1780084947000,-726.72,0.00041424,120]
[423405629,1780084947000,-570.29,0.00041424,120]
[423405630,1780084947000,-500.0,0.00041424,120]
[423405624,1780084947000,-1336.22,0.00041424,120]
[423405634,1780084948000,-500.0,0.00041424,120]
[423405632,1780084948000,-1281.83,0.00041424,60]
[423405633,1780084948000,-277.73698362,0.00041424,120]
[423405635,1780084948000,-500.0,0.00041424,120]
[423405636,1780084948000,-500.0,0.00041424,120]
[423405631,1780084948000,-500.0,0.00041424,120]
[423405639,1780084948000,-500.0,0.00041424,120]
[423405638,1780084948000,-573.78347942,0.00041424,120]
[423405640,1780084948000,-500.0,0.00041424,120]
[423405641,1780084948000,-879.08,0.00041424,120]
[423405642,1780084948000,-500.0,0.00041424,120]
[423405643,1780084948000,-500.0,0.00041424,120]
[423405637,1780084948000,-500.0,0.00041424,120]
[423405644,1780084949000,-1285.51,0.00041424,120]
[423405645,1780084949000,-609.29,0.00041424,120]
[423405646,1780084949000,-933.56,0.00041424,120]
[423405647,1780084949000,-769.78,0.00041424,120]
[423405648,1780084949000,-500.0,0.00041424,120]
[423405649,1780084949000,-1243.25,0.00041424,120]
[423405650,1780084949000,-665.8,0.00041424,120]
[423405651,1780084949000,-500.0,0.00041424,120]
[423405653,1780084949000,-637.39,0.00041424,120]
[423405652,1780084949000,-500.0,0.00041424,120]
[423405654,1780084949000,-1063.17,0.00041424,120]
[423405655,1780084950000,-927.5,0.00041424,120]
[423405656,1780084950000,-500.0,0.00041424,120]
[423405657,1780084950000,-500.0,0.00041424,120]
[423405658,1780084950000,-545.76,0.00041424,120]
[423405659,1780084950000,-500.0,0.00041424,120]
[423405663,1780084950000,-558.48760754,0.00041424,120]
[423405661,1780084950000,-500.0,0.00041424,120]
[423405662,1780084950000,-812.35,0.00041424,120]
[423405664,1780084950000,-586.79,0.00041424,120]
[423405665,1780084950000,-500.0,0.00041424,120]
[423405660,1780084950000,-864.63,0.00041424,120]
[423405672,1780084951000,-2146.7,0.00041424,120]
[423405671,1780084951000,-1849.61,0.00041424,120]
[423405670,1780084951000,-500.0,0.00041424,120]
[423405669,1780084951000,-500.0,0.00041424,120]
[423405668,1780084951000,-1172.38,0.00041424,120]
[423405667,1780084951000,-500.0,0.00041424,120]
[423405666,1780084951000,-750.51,0.00041424,120]
[423405675,1780084952000,-2371.97,0.00041424,120]
[423405674,1780084952000,-500.0,0.00041424,120]
[423405676,1780084952000,-924.07,0.00041424,120]
[423405673,1780084952000,-1846.52,0.00041424,120]
[423405678,1780084952000,-1270.37,0.00041424,120]
[423405679,1780084952000,-500.0,0.00041424,120]
[423405680,1780084952000,-500.0,0.00041424,120]
[423405677,1780084952000,-453.79615132,0.00041424,120]
[423405681,1780084953000,-500.0,0.00041424,120]
[423405683,1780084953000,-500.0,0.00041424,120]
[423405682,1780084953000,-2767.0,0.00041424,120]
[423405685,1780084953000,-500.0,0.00041424,120]
[423405687,1780084953000,-500.0,0.00041424,120]
[423405686,1780084953000,-500.0,0.00041424,120]
[423405684,1780084953000,-500.0,0.00041424,120]
[423405688,1780084954000,-1062.75,0.00041424,120]
[423405689,1780084954000,-1638.1,0.00041424,120]
[423405691,1780084954000,-500.0,0.00041424,120]
[423405690,1780084954000,-669.14,0.00041424,120]
[423405692,1780084954000,-500.0,0.00041424,45]
[423405694,1780084954000,-500.0,0.00041424,120]
[423405695,1780084954000,-500.0,0.00041424,120]
[423405696,1780084954000,-709.56,0.00041424,120]
[423405697,1780084954000,-1034.93,0.00041424,120]
[423405698,1780084954000,-501.87,0.00041424,120]
[423405693,1780084954000,-500.0,0.00041424,120]
[423405701,1780084955000,-500.12,0.00041424,120]
[423405699,1780084955000,-500.0,0.00041424,120]
[423405700,1780084955000,-167.08979524,0.00041424,120]
[423405702,1780084955000,-500.0,0.00041424,120]
[423405703,1780084955000,-500.0,0.00041424,120]
[423405708,1780084955000,-500.0,0.00041424,120]
[423405705,1780084955000,-500.0,0.00041424,120]
[423405706,1780084955000,-554.5,0.00041424,120]
[423405707,1780084955000,-892.69,0.00041424,120]
[423405709,1780084955000,-500.0,0.00041424,120]
[423405704,1780084955000,-500.0,0.00041424,120]
[423405713,1780084956000,-500.0,0.00041424,120]
[423405710,1780084956000,-2513.76,0.00041424,120]
[423405711,1780084956000,-2260.05,0.00041424,120]
[423405712,1780084956000,-500.0,0.00041424,120]
[423405715,1780084956000,-699.92,0.00041424,120]
[423405714,1780084956000,-500.0,0.00041424,120]
[423405717,1780084956000,-1771.61,0.00041424,120]
[423405718,1780084956000,-634.64439896,0.00041424,120]
[423405719,1780084956000,-2831.45,0.00041424,120]
[423405720,1780084956000,-500.0,0.00041424,120]
[423405716,1780084956000,-527.28,0.00041424,120]
[423405721,1780084956000,-1981.32,0.00041424,120]
[423405723,1780084957000,-500.0,0.00041424,120]
[423405722,1780084957000,-500.0,0.00041424,120]
[423405724,1780084957000,-299.75500278,0.00041424,120]
[423405727,1780084957000,-500.0,0.00041424,120]
[423405726,1780084957000,-500.0,0.00041424,120]
[423405725,1780084957000,-500.0,0.00041424,120]
[423405729,1780084957000,-500.0,0.00041424,120]
[423405730,1780084957000,-801.23,0.00041424,120]
[423405731,1780084957000,-637.21338898,0.00041424,120]
[423405732,1780084957000,-1297.85,0.00041424,120]
[423405733,1780084957000,-500.0,0.00041424,120]
[423405734,1780084957000,-566.19,0.00041424,120]
[423405728,1780084957000,-2973.26,0.00041424,120]
[423405735,1780084958000,-500.0,0.00041424,120]
[423405736,1780084958000,-768.86,0.00041424,120]
[423405737,1780084958000,-500.0,0.00041424,120]
[423405738,1780084958000,-500.0,0.00041424,120]
[423405742,1780084958000,-500.0,0.00041424,120]
[423405740,1780084958000,-500.0,0.00041424,120]
[423405741,1780084958000,-500.0,0.00041424,120]
[423405743,1780084958000,-1000.7,0.00041424,120]
[423405744,1780084958000,-934.16,0.00041424,120]
[423405739,1780084958000,-1429.56,0.00041424,120]
[423405747,1780084959000,-244.53043437,0.00041424,120]
[423405749,1780084959000,-500.0,0.00041424,120]
[423405745,1780084959000,-500.0,0.00041424,120]
[423405746,1780084959000,-500.0,0.00041424,120]
[423405750,1780084959000,-613.48,0.00041424,120]
[423405748,1780084959000,-500.0,0.00041424,120]
[423405752,1780084959000,-500.0,0.00041424,120]
[423405753,1780084959000,-500.0,0.00041424,120]
[423405754,1780084959000,-566.86,0.00041424,120]
[423405757,1780084959000,-2826.59,0.00041424,120]
[423405755,1780084959000,-500.0,0.00041424,120]
[423405756,1780084959000,-500.0,0.00041424,120]
[423405751,1780084959000,-751.08,0.00041424,120]
[423405758,1780084960000,-1174.45,0.00041424,120]
[423405759,1780084960000,-744.7,0.00041424,120]